[Event "Early-Titled-Tuesday-Blitz-September-26-2023"]
[Site "Chess.com"]
[Date "2023.09.26"]
[Round "11"]
[White "elegant285"]
[Black "AnaKuchava"]
[Result "1-0"]
[WhiteElo "2403"]
[BlackElo "2258"]
[TimeControl "180+1"]
[EndTime "10:04:49 PDT"]
[Termination "elegant285 won on time"]

1. d4 {[%clk 0:03:00.9]} 1... d5 {[%clk 0:02:59.4]} 2. c4 {[%clk 0:03:01.1]}
2... e6 {[%clk 0:02:58.6]} 3. Nc3 {[%clk 0:03:00.8]} 3... Be7 {[%clk 0:02:57.8]}
4. Bf4 {[%clk 0:02:59]} 4... Nf6 {[%clk 0:02:56.1]} 5. e3 {[%clk 0:02:59.4]}
5... c5 {[%clk 0:02:48]} 6. dxc5 {[%clk 0:02:52.3]} 6... Bxc5 {[%clk 0:02:47.1]}
7. cxd5 {[%clk 0:02:52.1]} 7... Nxd5 {[%clk 0:02:34.3]} 8. Nxd5 {[%clk
0:02:37.6]} 8... exd5 {[%clk 0:02:35.2]} 9. a3 {[%clk 0:02:11.2]} 9... O-O
{[%clk 0:02:19.6]} 10. Nf3 {[%clk 0:02:10.9]} 10... Nc6 {[%clk 0:02:18.4]} 11.
Bd3 {[%clk 0:02:06.1]} 11... d4 {[%clk 0:02:16.1]} 12. Bxh7+ {[%clk 0:02:01.6]}
12... Kh8 {[%clk 0:01:51.1]} 13. Nxd4 {[%clk 0:01:37.1]} 13... Qa5+ {[%clk
0:01:09.5]} 14. b4 {[%clk 0:01:29.8]} 14... Bxb4+ {[%clk 0:01:06.9]} 15. axb4
{[%clk 0:01:28.9]} 15... Qxb4+ {[%clk 0:01:07.8]} 16. Kf1 {[%clk 0:01:24.5]}
16... Kxh7 {[%clk 0:01:03.5]} 17. Nf3 {[%clk 0:01:09.8]} 17... Bf5 {[%clk
0:00:39.7]} 18. h4 {[%clk 0:01:00.2]} 18... Rfd8 {[%clk 0:00:31.6]} 19. Ng5+
{[%clk 0:00:58]} 19... Kg8 {[%clk 0:00:29.8]} 20. Qh5 {[%clk 0:00:57]} 20... Bg6
{[%clk 0:00:29.5]} 21. Qg4 {[%clk 0:00:56.6]} 21... Ne5 {[%clk 0:00:22.4]} 22.
Qg3 {[%clk 0:00:55]} 22... Qb2 {[%clk 0:00:18]} 23. Bxe5 {[%clk 0:00:46.3]}
23... Bd3+ {[%clk 0:00:04.6]} 24. Kg1 {[%clk 0:00:44.9]} 24... Qb5 {[%clk
0:00:01.9]} 25. Kh2 {[%clk 0:00:43.4]} 1-0

[Event "Early-Titled-Tuesday-Blitz-September-26-2023"]
[Site "Chess.com"]
[Date "2023.09.26"]
[Round "11"]
[White "C_K_G"]
[Black "FoxOnTheRun97"]
[Result "1-0"]
[WhiteElo "1967"]
[BlackElo "2534"]
[TimeControl "180+1"]
[EndTime "10:04:50 PDT"]
[Termination "C_K_G won by resignation"]

1. e4 {[%clk 0:03:00.9]} 1... c6 {[%clk 0:03:00.1]} 2. Nf3 {[%clk 0:03:01.1]}
2... d5 {[%clk 0:02:59.8]} 3. Nc3 {[%clk 0:03:01.7]} 3... Bg4 {[%clk 0:02:59.3]}
4. exd5 {[%clk 0:02:54.5]} 4... cxd5 {[%clk 0:02:58.2]} 5. Bb5+ {[%clk
0:02:54.2]} 5... Nc6 {[%clk 0:02:03.2]} 6. h3 {[%clk 0:02:44.3]} 6... Bxf3
{[%clk 0:01:58.5]} 7. Qxf3 {[%clk 0:02:43.9]} 7... e6 {[%clk 0:01:58.9]} 8. d4
{[%clk 0:02:41.7]} 8... Bd6 {[%clk 0:01:55.7]} 9. Bf4 {[%clk 0:02:40.4]} 9...
Ne7 {[%clk 0:01:51.7]} 10. O-O {[%clk 0:02:32.8]} 10... O-O {[%clk 0:01:50.1]}
11. Bxc6 {[%clk 0:02:31.7]} 11... bxc6 {[%clk 0:01:42.8]} 12. b3 {[%clk
0:02:18]} 12... Nf5 {[%clk 0:01:35.5]} 13. Ne2 {[%clk 0:02:14.8]} 13... c5
{[%clk 0:01:21.5]} 14. c3 {[%clk 0:02:12.9]} 14... cxd4 {[%clk 0:01:19.5]} 15.
Nxd4 {[%clk 0:02:10.1]} 15... Nxd4 {[%clk 0:01:15.9]} 16. cxd4 {[%clk 0:02:10]}
16... Rc8 {[%clk 0:01:11.4]} 17. Bxd6 {[%clk 0:02:01.2]} 17... Qxd6 {[%clk
0:01:12.3]} 18. Rac1 {[%clk 0:01:59]} 18... Qa3 {[%clk 0:01:10.5]} 19. Rxc8
{[%clk 0:01:54]} 19... Rxc8 {[%clk 0:01:11.4]} 20. Qe2 {[%clk 0:01:53.1]} 20...
h6 {[%clk 0:01:03.7]} 21. g3 {[%clk 0:01:52.2]} 21... Rc3 {[%clk 0:00:54.5]} 22.
Rd1 {[%clk 0:01:50.6]} 22... Qa5 {[%clk 0:00:46.7]} 23. Kg2 {[%clk 0:01:45.3]}
23... Qc7 {[%clk 0:00:44.3]} 24. Rd3 {[%clk 0:01:44.1]} 24... Rc1 {[%clk
0:00:43.3]} 25. h4 {[%clk 0:01:32.8]} 25... g6 {[%clk 0:00:37.6]} 26. h5 {[%clk
0:01:29.8]} 26... g5 {[%clk 0:00:34.3]} 27. Rf3 {[%clk 0:01:26.5]} 27... Qc2
{[%clk 0:00:25.3]} 28. Qe5 {[%clk 0:01:21]} 28... Qd1 {[%clk 0:00:16.3]} 29.
Qb8+ {[%clk 0:01:10.1]} 29... Kg7 {[%clk 0:00:14.2]} 30. Qe5+ {[%clk 0:01:08.2]}
30... Kg8 {[%clk 0:00:13.3]} 31. Qb8+ {[%clk 0:01:07.5]} 31... Kg7 {[%clk
0:00:13.4]} 32. Qe5+ {[%clk 0:01:07.4]} 32... Kf8 {[%clk 0:00:13.1]} 33. Qb8+
{[%clk 0:01:07]} 33... Ke7 {[%clk 0:00:11.8]} 34. Qb7+ {[%clk 0:01:06.3]} 34...
Kd6 {[%clk 0:00:11.1]} 35. Qb8+ {[%clk 0:01:06]} 35... Kd7 {[%clk 0:00:11]} 36.
Rxf7+ {[%clk 0:01:04.7]} 36... Kc6 {[%clk 0:00:10.5]} 37. Rc7+ {[%clk
0:01:04.2]} 37... Kd6 {[%clk 0:00:11.1]} 38. Rxc1+ {[%clk 0:01:04.2]} 1-0

[Event "Early-Titled-Tuesday-Blitz-September-26-2023"]
[Site "Chess.com"]
[Date "2023.09.26"]
[Round "11"]
[White "Flaccidmoves"]
[Black "wadsy27"]
[Result "0-1"]
[WhiteElo "2480"]
[BlackElo "2636"]
[TimeControl "180+1"]
[EndTime "10:04:51 PDT"]
[Termination "wadsy27 won by resignation"]

1. Nf3 {[%clk 0:03:00.9]} 1... d5 {[%clk 0:02:44.7]} 2. e3 {[%clk 0:03:00]} 2...
g6 {[%clk 0:02:45.2]} 3. c4 {[%clk 0:02:57.4]} 3... c6 {[%clk 0:02:44.3]} 4. Nc3
{[%clk 0:02:56]} 4... Bg7 {[%clk 0:02:44.7]} 5. d4 {[%clk 0:02:50.8]} 5... Nf6
{[%clk 0:02:45.2]} 6. Be2 {[%clk 0:02:47.6]} 6... O-O {[%clk 0:02:45.7]} 7. O-O
{[%clk 0:02:47.1]} 7... Bg4 {[%clk 0:02:45]} 8. b3 {[%clk 0:02:41.5]} 8... Nbd7
{[%clk 0:02:42.4]} 9. h3 {[%clk 0:02:37.1]} 9... Bxf3 {[%clk 0:02:41.7]} 10.
Bxf3 {[%clk 0:02:38]} 10... e5 {[%clk 0:02:38.7]} 11. cxd5 {[%clk 0:02:28.6]}
11... exd4 {[%clk 0:02:36.4]} 12. exd4 {[%clk 0:02:23.7]} 12... Nxd5 {[%clk
0:02:30.9]} 13. Nxd5 {[%clk 0:02:13.6]} 13... cxd5 {[%clk 0:02:30]} 14. Bxd5
{[%clk 0:02:14.5]} 14... Qb6 {[%clk 0:02:13.7]} 15. Ba3 {[%clk 0:01:53.1]} 15...
Rfd8 {[%clk 0:02:08.4]} 16. Qf3 {[%clk 0:01:49.9]} 16... Nf6 {[%clk 0:02:03.9]}
17. Bc5 {[%clk 0:01:33]} 17... Nxd5 {[%clk 0:01:56.3]} 18. Bxb6 {[%clk
0:01:32.9]} 18... axb6 {[%clk 0:01:56.5]} 19. a4 {[%clk 0:01:20.7]} 19... Rd7
{[%clk 0:01:38.4]} 20. Rac1 {[%clk 0:01:15.1]} 20... Rad8 {[%clk 0:01:38.3]} 21.
Rc4 {[%clk 0:01:10.2]} 21... h5 {[%clk 0:01:35.9]} 22. Rfc1 {[%clk 0:01:08.9]}
22... Bh6 {[%clk 0:01:16.8]} 23. R1c2 {[%clk 0:01:03.3]} 23... Nf4 {[%clk
0:01:16.8]} 24. Rc8 {[%clk 0:00:48.5]} 24... Rxc8 {[%clk 0:00:49.6]} 25. Rxc8+
{[%clk 0:00:49.4]} 25... Kg7 {[%clk 0:00:49.9]} 26. h4 {[%clk 0:00:41]} 26...
Ne6 {[%clk 0:00:46.8]} 27. Qc3 {[%clk 0:00:33.7]} 27... Bf4 {[%clk 0:00:32.2]}
28. d5+ {[%clk 0:00:32.8]} 28... f6 {[%clk 0:00:32.4]} 29. dxe6 {[%clk
0:00:32.6]} 29... Rd1+ {[%clk 0:00:32.5]} 0-1

[Event "Early-Titled-Tuesday-Blitz-September-26-2023"]
[Site "Chess.com"]
[Date "2023.09.26"]
[Round "11"]
[White "maurovargas01"]
[Black "campochess"]
[Result "0-1"]
[WhiteElo "1896"]
[BlackElo "2170"]
[TimeControl "180+1"]
[EndTime "10:04:57 PDT"]
[Termination "campochess won on time"]

1. e4 {[%clk 0:02:59.8]} 1... c5 {[%clk 0:02:59.5]} 2. Nf3 {[%clk 0:02:59.3]}
2... Nc6 {[%clk 0:02:59.5]} 3. d4 {[%clk 0:03:00.2]} 3... cxd4 {[%clk
0:02:59.1]} 4. Nxd4 {[%clk 0:02:59.8]} 4... e5 {[%clk 0:02:59]} 5. Nf3 {[%clk
0:02:56.7]} 5... Nf6 {[%clk 0:02:57.6]} 6. Nc3 {[%clk 0:02:53.2]} 6... Bb4
{[%clk 0:02:56.4]} 7. Bd3 {[%clk 0:02:38.6]} 7... d6 {[%clk 0:02:55.6]} 8. O-O
{[%clk 0:02:37.1]} 8... Bg4 {[%clk 0:02:55.3]} 9. Nd5 {[%clk 0:02:02.6]} 9...
Bc5 {[%clk 0:02:45.7]} 10. c3 {[%clk 0:01:59.2]} 10... Ne7 {[%clk 0:02:36.6]}
11. Nxf6+ {[%clk 0:01:56.5]} 11... gxf6 {[%clk 0:02:36.2]} 12. h3 {[%clk
0:01:56.2]} 12... Bd7 {[%clk 0:02:36.2]} 13. Kh1 {[%clk 0:01:54.1]} 13... O-O
{[%clk 0:02:34.7]} 14. Bh6 {[%clk 0:01:48.4]} 14... Re8 {[%clk 0:02:32]} 15. Nh4
{[%clk 0:01:46.6]} 15... Kh8 {[%clk 0:02:25.8]} 16. Nf5 {[%clk 0:01:46.1]} 16...
Nxf5 {[%clk 0:02:21.4]} 17. exf5 {[%clk 0:01:44.8]} 17... Rg8 {[%clk 0:02:21]}
18. Qh5 {[%clk 0:01:09.9]} 18... Be8 {[%clk 0:02:12.3]} 19. Rad1 {[%clk
0:00:51.1]} 19... Qe7 {[%clk 0:02:03]} 20. Be4 {[%clk 0:00:43.2]} 20... Bc6
{[%clk 0:02:00.7]} 21. f3 {[%clk 0:00:33.2]} 21... Rad8 {[%clk 0:01:58.4]} 22.
Bd5 {[%clk 0:00:20.7]} 22... Be8 {[%clk 0:01:47.8]} 23. a4 {[%clk 0:00:17.3]}
23... Rd7 {[%clk 0:01:46.8]} 24. b4 {[%clk 0:00:16.4]} 24... Bb6 {[%clk
0:01:43.5]} 25. a5 {[%clk 0:00:16.4]} 25... Bd8 {[%clk 0:01:43.4]} 26. Rd3
{[%clk 0:00:13.5]} 26... Rc7 {[%clk 0:01:30.3]} 27. Rfd1 {[%clk 0:00:12.7]}
27... Bb5 {[%clk 0:01:29.2]} 28. Rd4 {[%clk 0:00:12.2]} 28... exd4 {[%clk
0:01:25.8]} 29. Bxf7 {[%clk 0:00:11.1]} 29... Qxf7 {[%clk 0:01:24.8]} 30. Qh4
{[%clk 0:00:05.2]} 30... d3 {[%clk 0:01:18.9]} 31. Qd4 {[%clk 0:00:01.5]} 31...
Rc6 {[%clk 0:01:02.8]} 32. Re1 {[%clk 0:00:01.8]} 32... Qc4 {[%clk 0:00:56.1]}
0-1

[Event "Early-Titled-Tuesday-Blitz-September-26-2023"]
[Site "Chess.com"]
[Date "2023.09.26"]
[Round "11"]
[White "Witty_Alien"]
[Black "ViktoriyaTarasova"]
[Result "1-0"]
[WhiteElo "2241"]
[BlackElo "2371"]
[TimeControl "180+1"]
[EndTime "10:04:58 PDT"]
[Termination "Witty_Alien won by resignation"]

1. e4 {[%clk 0:03:00.9]} 1... c5 {[%clk 0:02:57.2]} 2. Nf3 {[%clk 0:03:00.2]}
2... d6 {[%clk 0:02:57.1]} 3. d4 {[%clk 0:03:00.3]} 3... cxd4 {[%clk 0:02:57.8]}
4. Nxd4 {[%clk 0:02:59.2]} 4... Nf6 {[%clk 0:02:58.4]} 5. Nc3 {[%clk 0:02:58.8]}
5... a6 {[%clk 0:02:59.1]} 6. Bc4 {[%clk 0:02:59]} 6... e6 {[%clk 0:02:59.1]} 7.
Bb3 {[%clk 0:02:58.4]} 7... b5 {[%clk 0:02:57.9]} 8. O-O {[%clk 0:02:58.2]} 8...
Be7 {[%clk 0:02:57.7]} 9. f4 {[%clk 0:02:58.2]} 9... O-O {[%clk 0:02:57.5]} 10.
Be3 {[%clk 0:02:47.9]} 10... Qc7 {[%clk 0:02:56.9]} 11. Qf3 {[%clk 0:02:28]}
11... b4 {[%clk 0:02:52.9]} 12. e5 {[%clk 0:02:21.6]} 12... Bb7 {[%clk
0:02:52.7]} 13. Qg3 {[%clk 0:02:22]} 13... bxc3 {[%clk 0:02:45.6]} 14. Bxe6
{[%clk 0:01:57.3]} 14... Ne4 {[%clk 0:02:41.4]} 15. Qg4 {[%clk 0:01:47.4]} 15...
h5 {[%clk 0:01:40.4]} 16. Qxh5 {[%clk 0:01:43.2]} 16... cxb2 {[%clk 0:01:40.3]}
17. Bf5 {[%clk 0:01:25.8]} 17... g6 {[%clk 0:01:19.5]} 18. Bxg6 {[%clk
0:01:25.6]} 18... fxg6 {[%clk 0:01:20.2]} 19. Qxg6+ {[%clk 0:01:26]} 19... Kh8
{[%clk 0:01:20.9]} 20. Ne6 {[%clk 0:01:07]} 20... Bg5 {[%clk 0:00:49.6]} 21.
Nxc7 {[%clk 0:00:19.2]} 21... bxa1=Q {[%clk 0:00:45.2]} 22. Rxa1 {[%clk
0:00:20.1]} 22... Be7 {[%clk 0:00:18.5]} 23. exd6 {[%clk 0:00:13.8]} 23... Bxd6
{[%clk 0:00:16.3]} 24. Bd4+ {[%clk 0:00:14]} 1-0

[Event "Early-Titled-Tuesday-Blitz-September-26-2023"]
[Site "Chess.com"]
[Date "2023.09.26"]
[Round "11"]
[White "RamonManon0g"]
[Black "MAGMAchess02"]
[Result "0-1"]
[WhiteElo "2275"]
[BlackElo "2391"]
[TimeControl "180+1"]
[EndTime "10:05:01 PDT"]
[Termination "MAGMAchess02 won by resignation"]

1. e4 {[%clk 0:03:00.9]} 1... g6 {[%clk 0:02:58.7]} 2. d4 {[%clk 0:03:00.6]}
2... Bg7 {[%clk 0:02:59.1]} 3. Nc3 {[%clk 0:03:01.2]} 3... c6 {[%clk 0:02:59.4]}
4. Nf3 {[%clk 0:03:02]} 4... d5 {[%clk 0:02:59]} 5. e5 {[%clk 0:03:02.5]} 5...
h5 {[%clk 0:02:58.6]} 6. Be2 {[%clk 0:03:02.2]} 6... Nh6 {[%clk 0:02:58.8]} 7.
O-O {[%clk 0:03:01.9]} 7... O-O {[%clk 0:02:58.2]} 8. Bg5 {[%clk 0:03:01.7]}
8... Nf5 {[%clk 0:02:55]} 9. h3 {[%clk 0:03:00.6]} 9... b6 {[%clk 0:02:48.7]}
10. Qd2 {[%clk 0:03:00.1]} 10... Kh7 {[%clk 0:02:40.9]} 11. Rfe1 {[%clk
0:03:00.2]} 11... Bh6 {[%clk 0:02:38.4]} 12. Bxh6 {[%clk 0:02:57.2]} 12... Nxh6
{[%clk 0:02:37.7]} 13. Ng5+ {[%clk 0:02:58.1]} 13... Kg7 {[%clk 0:02:35.1]} 14.
e6 {[%clk 0:02:55.8]} 14... f6 {[%clk 0:02:35]} 15. Nf3 {[%clk 0:02:34.5]} 15...
Bxe6 {[%clk 0:02:31.6]} 16. Ba6 {[%clk 0:02:33.9]} 16... Qd7 {[%clk 0:02:20.9]}
17. Bb7 {[%clk 0:02:15.9]} 17... Qxb7 {[%clk 0:02:20.7]} 18. Rxe6 {[%clk
0:02:16.1]} 18... Na6 {[%clk 0:02:03.3]} 19. Rae1 {[%clk 0:02:14]} 19... Rf7
{[%clk 0:02:03.4]} 20. Qe2 {[%clk 0:02:08.7]} 20... Re8 {[%clk 0:01:54.4]} 21.
a3 {[%clk 0:02:00.4]} 21... Nc7 {[%clk 0:01:54.1]} 22. Nh4 {[%clk 0:01:26.6]}
22... Nxe6 {[%clk 0:01:44.5]} 23. Qxe6 {[%clk 0:01:27.5]} 23... Qc8 {[%clk
0:01:43]} 24. f4 {[%clk 0:01:16.9]} 24... Qxe6 {[%clk 0:01:38.7]} 25. Rxe6
{[%clk 0:01:17.8]} 25... Rc8 {[%clk 0:01:38.9]} 26. Na2 {[%clk 0:01:05.3]} 26...
Nf5 {[%clk 0:01:35.8]} 27. Nxf5+ {[%clk 0:01:05]} 27... gxf5 {[%clk 0:01:35.6]}
28. Nb4 {[%clk 0:01:05.9]} 28... c5 {[%clk 0:01:29.4]} 29. Nc6 {[%clk
0:00:53.9]} 29... Rc7 {[%clk 0:01:16.5]} 30. c3 {[%clk 0:00:49]} 30... Kf8
{[%clk 0:01:13.2]} 31. Kf2 {[%clk 0:00:40.9]} 31... Rg7 {[%clk 0:01:10.6]} 32.
dxc5 {[%clk 0:00:31.1]} 32... bxc5 {[%clk 0:01:09.9]} 33. Na5 {[%clk 0:00:28.5]}
33... Kf7 {[%clk 0:01:03.3]} 34. Ra6 {[%clk 0:00:28.6]} 34... d4 {[%clk
0:00:48.4]} 35. c4 {[%clk 0:00:26.6]} 35... Rd7 {[%clk 0:00:41]} 36. Nc6 {[%clk
0:00:20.6]} 36... d3 {[%clk 0:00:39.5]} 37. Ke3 {[%clk 0:00:14.5]} 37... d2
{[%clk 0:00:38]} 0-1

[Event "Early-Titled-Tuesday-Blitz-September-26-2023"]
[Site "Chess.com"]
[Date "2023.09.26"]
[Round "11"]
[White "ChainedDowntohell"]
[Black "bubeliang"]
[Result "0-1"]
[WhiteElo "2457"]
[BlackElo "2630"]
[TimeControl "180+1"]
[EndTime "10:05:08 PDT"]
[Termination "bubeliang won on time"]

1. d4 {[%clk 0:03:00.9]} 1... Nf6 {[%clk 0:02:57.5]} 2. c4 {[%clk 0:03:01]} 2...
e6 {[%clk 0:02:54.8]} 3. Nf3 {[%clk 0:03:00.6]} 3... d5 {[%clk 0:02:55]} 4. Nc3
{[%clk 0:03:00.1]} 4... c5 {[%clk 0:02:55.1]} 5. e3 {[%clk 0:02:57.7]} 5... Nc6
{[%clk 0:02:53.3]} 6. cxd5 {[%clk 0:02:56]} 6... exd5 {[%clk 0:02:53.4]} 7. Bb5
{[%clk 0:02:54.9]} 7... Bd6 {[%clk 0:02:39.6]} 8. dxc5 {[%clk 0:02:53.8]} 8...
Bxc5 {[%clk 0:02:38.4]} 9. O-O {[%clk 0:02:53.5]} 9... O-O {[%clk 0:02:36.4]}
10. b3 {[%clk 0:02:51.8]} 10... d4 {[%clk 0:02:35.4]} 11. exd4 {[%clk
0:02:05.9]} 11... Nxd4 {[%clk 0:02:36.3]} 12. Nxd4 {[%clk 0:01:36.6]} 12... Bxd4
{[%clk 0:02:31.3]} 13. Bb2 {[%clk 0:01:32.9]} 13... Ne4 {[%clk 0:02:23.4]} 14.
Qf3 {[%clk 0:01:09.8]} 14... Nd2 {[%clk 0:02:21]} 15. Qg3 {[%clk 0:01:02]} 15...
Nxf1 {[%clk 0:02:17.7]} 16. Bxf1 {[%clk 0:01:01.1]} 16... Bxc3 {[%clk
0:01:50.6]} 17. Bxc3 {[%clk 0:00:59.6]} 17... f6 {[%clk 0:01:51.2]} 18. h4
{[%clk 0:00:56]} 18... Bf5 {[%clk 0:01:39.1]} 19. h5 {[%clk 0:00:52.3]} 19...
Qe8 {[%clk 0:01:37.5]} 20. h6 {[%clk 0:00:47.3]} 20... Qg6 {[%clk 0:01:35.5]}
21. hxg7 {[%clk 0:00:46.8]} 21... Qxg7 {[%clk 0:01:33.1]} 22. Qf4 {[%clk
0:00:43]} 22... Bd7 {[%clk 0:01:29.3]} 23. Rd1 {[%clk 0:00:40.2]} 23... Bc6
{[%clk 0:01:28.1]} 24. Rd6 {[%clk 0:00:39.7]} 24... Rf7 {[%clk 0:01:18.5]} 25.
g3 {[%clk 0:00:35.6]} 25... Qg6 {[%clk 0:01:01.9]} 26. Bd3 {[%clk 0:00:17.2]}
26... Qh5 {[%clk 0:00:59.5]} 27. f3 {[%clk 0:00:10.7]} 27... Bxf3 {[%clk
0:00:55]} 28. Kf2 {[%clk 0:00:05.3]} 28... Bc6 {[%clk 0:00:48]} 29. g4 {[%clk
0:00:02.5]} 29... Qh4+ {[%clk 0:00:45.7]} 30. Qg3 {[%clk 0:00:01.8]} 30... Qg5
{[%clk 0:00:36.9]} 31. Bc4 {[%clk 0:00:01.5]} 31... Rf8 {[%clk 0:00:32.6]} 0-1

[Event "Early-Titled-Tuesday-Blitz-September-26-2023"]
[Site "Chess.com"]
[Date "2023.09.26"]
[Round "11"]
[White "ExchangeAB"]
[Black "Dewarfd"]
[Result "1/2-1/2"]
[WhiteElo "2435"]
[BlackElo "2175"]
[TimeControl "180+1"]
[EndTime "10:05:09 PDT"]
[Termination "Game drawn by repetition"]

1. d4 {[%clk 0:03:00.9]} 1... d5 {[%clk 0:03:00.3]} 2. Nc3 {[%clk 0:03:00.6]}
2... e6 {[%clk 0:02:58.1]} 3. Bf4 {[%clk 0:02:58.4]} 3... Nf6 {[%clk 0:02:58.6]}
4. e3 {[%clk 0:02:58.3]} 4... Bd6 {[%clk 0:02:58.2]} 5. Nf3 {[%clk 0:02:57.6]}
5... Bxf4 {[%clk 0:02:58.5]} 6. exf4 {[%clk 0:02:58.5]} 6... O-O {[%clk
0:02:58.5]} 7. Bd3 {[%clk 0:02:58.1]} 7... b6 {[%clk 0:02:59]} 8. O-O {[%clk
0:02:57.9]} 8... Ba6 {[%clk 0:02:58.6]} 9. Bxa6 {[%clk 0:02:57.9]} 9... Nxa6
{[%clk 0:02:58.9]} 10. Ne5 {[%clk 0:02:58.1]} 10... c5 {[%clk 0:02:55.1]} 11.
Nb5 {[%clk 0:02:54.5]} 11... cxd4 {[%clk 0:02:39.7]} 12. Nxd4 {[%clk 0:02:54]}
12... Nc5 {[%clk 0:02:36.8]} 13. f3 {[%clk 0:02:40.4]} 13... Rc8 {[%clk
0:02:33.6]} 14. c3 {[%clk 0:02:39.8]} 14... Ncd7 {[%clk 0:02:30.2]} 15. Nxd7
{[%clk 0:02:35]} 15... Qxd7 {[%clk 0:02:29.4]} 16. Qe2 {[%clk 0:02:35.7]} 16...
Qc7 {[%clk 0:02:15.4]} 17. g3 {[%clk 0:02:34.1]} 17... Qc4 {[%clk 0:02:14.9]}
18. Rae1 {[%clk 0:02:33.2]} 18... Qxe2 {[%clk 0:02:07.1]} 19. Rxe2 {[%clk
0:02:34.1]} 19... a6 {[%clk 0:02:06.1]} 20. f5 {[%clk 0:02:32.8]} 20... exf5
{[%clk 0:01:39.9]} 21. Nxf5 {[%clk 0:02:33.7]} 21... Rcd8 {[%clk 0:01:32.7]} 22.
Rd1 {[%clk 0:02:32.4]} 22... g6 {[%clk 0:01:28.9]} 23. Nd4 {[%clk 0:02:27.2]}
23... Rfe8 {[%clk 0:01:26]} 24. Rde1 {[%clk 0:02:27]} 24... Rxe2 {[%clk
0:01:25.5]} 25. Rxe2 {[%clk 0:02:27.9]} 25... Re8 {[%clk 0:01:23.5]} 26. Kf2
{[%clk 0:02:22.2]} 26... Kf8 {[%clk 0:01:17.4]} 27. Rxe8+ {[%clk 0:02:21.1]}
27... Kxe8 {[%clk 0:01:18.1]} 28. Ke3 {[%clk 0:02:20.1]} 28... Kd7 {[%clk
0:01:18.3]} 29. Ne2 {[%clk 0:02:16.3]} 29... Kd6 {[%clk 0:01:15.2]} 30. Kd4
{[%clk 0:02:16.2]} 30... g5 {[%clk 0:01:14.3]} 31. h4 {[%clk 0:02:12.8]} 31...
h6 {[%clk 0:01:14.4]} 32. hxg5 {[%clk 0:02:11.1]} 32... hxg5 {[%clk 0:01:15.3]}
33. Ng1 {[%clk 0:02:08.1]} 33... Nh5 {[%clk 0:01:14]} 34. Ne2 {[%clk 0:01:56.5]}
34... Ng7 {[%clk 0:01:13.5]} 35. g4 {[%clk 0:01:52.6]} 35... f5 {[%clk 0:01:11]}
36. Ke3 {[%clk 0:01:49.3]} 36... f4+ {[%clk 0:01:01.9]} 37. Kd3 {[%clk
0:01:48.3]} 37... Ne6 {[%clk 0:01:01.7]} 38. Nd4 {[%clk 0:01:47.3]} 38... b5
{[%clk 0:00:48.2]} 39. Nxe6 {[%clk 0:01:45.2]} 39... Kxe6 {[%clk 0:00:48.6]} 40.
Kd4 {[%clk 0:01:45.8]} 40... Kd6 {[%clk 0:00:48.9]} 41. b4 {[%clk 0:01:45.2]}
41... Ke6 {[%clk 0:00:44.2]} 42. Kc5 {[%clk 0:01:45.3]} 42... Ke5 {[%clk
0:00:43]} 43. a3 {[%clk 0:01:38.8]} 43... Ke6 {[%clk 0:00:43]} 44. Kb6 {[%clk
0:01:38.5]} 44... d4 {[%clk 0:00:43.2]} 45. cxd4 {[%clk 0:01:38.4]} 45... Kd5
{[%clk 0:00:44]} 46. Kxa6 {[%clk 0:01:38.8]} 46... Kxd4 {[%clk 0:00:43]} 47.
Kxb5 {[%clk 0:01:39.2]} 47... Ke3 {[%clk 0:00:43.9]} 48. a4 {[%clk 0:01:40.1]}
48... Kxf3 {[%clk 0:00:44.7]} 49. a5 {[%clk 0:01:41]} 49... Kxg4 {[%clk
0:00:45.6]} 50. a6 {[%clk 0:01:41.9]} 50... f3 {[%clk 0:00:46.5]} 51. a7 {[%clk
0:01:42.8]} 51... f2 {[%clk 0:00:46.8]} 52. a8=Q {[%clk 0:01:43.7]} 52... f1=Q+
{[%clk 0:00:47.2]} 53. Kc5 {[%clk 0:01:38.9]} 53... Qc1+ {[%clk 0:00:44.2]} 54.
Kb6 {[%clk 0:01:29.3]} 54... Qe3+ {[%clk 0:00:40.8]} 55. Kb5 {[%clk 0:01:22.2]}
55... Qd3+ {[%clk 0:00:37.4]} 56. Kc5 {[%clk 0:01:19.6]} 56... Qc3+ {[%clk
0:00:36.9]} 57. Kb5 {[%clk 0:01:19.1]} 57... Qd3+ {[%clk 0:00:37.5]} 58. Kc5
{[%clk 0:01:19.4]} 58... Qc3+ {[%clk 0:00:37.5]} 59. Kb5 {[%clk 0:01:19.9]}
59... Qd3+ {[%clk 0:00:38]} 1/2-1/2